fUSD/lending_fUSD_20260625
["ID","MTS","AMOUNT","RATE_DAILY","PERIOD"]
[426414967,1782363041000,-151.0,0.0001399,2]
[426414951,1782363041000,-151.0,0.00013699,2]
[426414980,1782363041000,-151.0,0.00014165,2]
[426415001,1782363041000,-500.0,0.00014491,2]
[426414996,1782363041000,-500.0,0.00014491,2]
[426414986,1782363041000,-500.0,0.00014491,2]
[426414969,1782363041000,-250.0,0.00014,2]
[426415005,1782363041000,-500.0,0.00014491,2]
[426415007,1782363041000,-500.0,0.00014491,2]
[426414993,1782363041000,-500.0,0.00014491,2]
[426414988,1782363041000,-500.0,0.00014491,2]
[426414991,1782363041000,-500.0,0.00014491,2]
[426414984,1782363041000,-500.0,0.00014491,2]
[426414982,1782363041000,-308.93486946,0.00014255,2]
[426414995,1782363041000,-500.0,0.00014491,2]
[426415133,1782363042000,-151.0,0.00014676,2]
[426415139,1782363042000,-500.0,0.00014676,2]
[426415135,1782363042000,-500.0,0.00014676,2]
[426415152,1782363042000,-162.671361,0.00014676,2]
[426415143,1782363042000,-500.0,0.00014676,2]
[426415137,1782363042000,-500.0,0.00014676,2]
[426415148,1782363042000,-151.0,0.00014676,2]
[426415146,1782363042000,-500.0,0.00014676,2]
[426415141,1782363042000,-500.0,0.00014676,2]
[426415131,1782363042000,-500.0,0.00014676,2]
[426415150,1782363042000,-151.0,0.00014676,2]
[426415154,1782363042000,-500.0,0.00014676,2]
[426415170,1782363042000,-500.0,0.00014689,2]
[426415166,1782363042000,-500.0,0.00014689,2]
[426415168,1782363042000,-500.0,0.00014689,2]
[426415163,1782363042000,-500.0,0.00014689,2]
[426415174,1782363042000,-151.0,0.00014689,2]
[426415159,1782363042000,-231.84853459,0.00014689,2]
[426415161,1782363042000,-500.0,0.00014689,2]
[426415172,1782363042000,-500.0,0.00014689,2]
[426415176,1782363042000,-500.0,0.00014689,2]
[426415178,1782363042000,-500.0,0.00014689,2]
[426415182,1782363042000,-500.0,0.00014689,2]
[426415122,1782363042000,-500.0,0.00014676,2]
[426415184,1782363042000,-500.0,0.00014689,2]
[426415156,1782363042000,-491.72215115,0.00014676,2]
[426415125,1782363042000,-500.0,0.00014676,2]
[426415095,1782363042000,-500.0,0.00014676,2]
[426415108,1782363042000,-500.0,0.00014676,2]
[426415186,1782363042000,-500.0,0.00014689,2]
[426415071,1782363042000,-500.0,0.00014676,2]
[426415072,1782363042000,-500.0,0.00014676,2]
[426415073,1782363042000,-500.0,0.00014676,2]
[426415077,1782363042000,-500.0,0.00014676,2]
[426415075,1782363042000,-500.0,0.00014676,2]
[426415078,1782363042000,-320.59115977,0.00014676,2]
[426415081,1782363042000,-500.0,0.00014676,2]
[426415083,1782363042000,-500.0,0.00014676,2]
[426415087,1782363042000,-500.0,0.00014676,2]
[426415091,1782363042000,-500.0,0.00014676,2]
[426415085,1782363042000,-500.0,0.00014676,2]
[426415089,1782363042000,-500.0,0.00014676,2]
[426415093,1782363042000,-500.0,0.00014676,2]
[426415099,1782363042000,-500.0,0.00014676,2]
[426415101,1782363042000,-500.0,0.00014676,2]
[426415097,1782363042000,-500.0,0.00014676,2]
[426415106,1782363042000,-500.0,0.00014676,2]
[426415110,1782363042000,-500.0,0.00014676,2]
[426415112,1782363042000,-500.0,0.00014676,2]
[426415114,1782363042000,-500.0,0.00014676,2]
[426415116,1782363042000,-500.0,0.00014676,2]
[426415120,1782363042000,-500.0,0.00014676,2]
[426415118,1782363042000,-151.0,0.00014676,2]
[426415129,1782363042000,-500.0,0.00014676,2]
[426415126,1782363042000,-500.0,0.00014676,2]
[426415188,1782363042000,-500.0,0.00014689,2]
[426415103,1782363042000,-500.0,0.00014676,2]
[426415201,1782363042000,-154.839608,0.00014689,2]
[426415252,1782363042000,-471.46339761,0.00014837,2]
[426415254,1782363042000,-500.0,0.00014846,2]
[426415256,1782363042000,-151.0,0.00014847,2]
[426415260,1782363042000,-15000.0,0.00014847,2]
[426415258,1782363042000,-159.746998,0.00014847,2]
[426415264,1782363042000,-1648.77504909,0.0001485,2]
[426415266,1782363042000,-500.0,0.00014859,2]
[426415262,1782363042000,-6111.0,0.00014848,2]
[426415270,1782363042000,-10000.0,0.0001486,2]
[426415272,1782363042000,-200.0,0.00014879,2]
[426415268,1782363042000,-500.0,0.00014859,2]
[426415274,1782363042000,-500.0,0.00014896,2]
[426415247,1782363042000,-200.0,0.00014805,2]
[426415275,1782363042000,-308.93486946,0.00014897,2]
[426415276,1782363042000,-541.66,0.00014899,2]
[426415277,1782363042000,-500.0,0.00014899,2]
[426415284,1782363042000,-500.0,0.00014899,2]
[426415280,1782363042000,-860.74,0.00014899,2]
[426415282,1782363042000,-500.0,0.00014899,2]
[426415289,1782363042000,-153.68,0.000149,2]
[426415290,1782363042000,-151.0,0.000149,2]
[426415296,1782363042000,-256.66474985,0.000149,2]
[426415287,1782363042000,-500.0,0.00014899,2]
[426415293,1782363042000,-10000.0,0.000149,2]
[426415298,1782363042000,-2129.41707638,0.000149,2]
[426415180,1782363042000,-500.0,0.00014689,2]
[426415278,1782363042000,-529.74259056,0.00014899,2]
[426415241,1782363042000,-1648.7750491,0.00014799,2]
[426415300,1782363042000,-7637.86412552,0.000149,2]
[426415251,1782363042000,-6111.0,0.00014817,2]
[426415245,1782363042000,-740.71,0.000148,2]
[426415191,1782363042000,-500.0,0.00014689,2]
[426415193,1782363042000,-500.0,0.00014689,2]
[426415199,1782363042000,-171.71878554,0.00014689,2]
[426415197,1782363042000,-500.0,0.00014689,2]
[426415202,1782363042000,-162.062628,0.0001469,2]
[426415206,1782363042000,-314.0,0.000147,2]
[426415208,1782363042000,-151.0,0.000147,2]
[426415204,1782363042000,-151.0,0.0001469,2]
[426415223,1782363042000,-273.06255,0.0001475,2]
[426415213,1782363042000,-312.0,0.000147,2]
[426415219,1782363042000,-320.0,0.000147,2]
[426415221,1782363042000,-200.0,0.00014731,2]
[426415210,1782363042000,-313.0,0.000147,2]
[426415239,1782363042000,-151.0,0.00014789,2]
[426415215,1782363042000,-316.0,0.000147,2]
[426415243,1782363042000,-5497.0,0.000148,5]
[426415249,1782363042000,-538.19500066,0.00014817,2]
[426415229,1782363042000,-273.06256,0.0001475,2]
[426415233,1782363042000,-273.06256,0.0001475,2]
[426415237,1782363042000,-15000.0,0.00014784,2]
[426415195,1782363042000,-500.0,0.00014689,2]
[426415231,1782363042000,-273.06256,0.0001475,2]
[426415217,1782363042000,-151.0,0.000147,2]
[426415227,1782363042000,-273.06256,0.0001475,2]
[426415225,1782363042000,-273.06255,0.0001475,2]
[426415235,1782363042000,-151.0,0.00014784,2]
[426415373,1782363043000,-500.0,0.00014999,2]
[426415377,1782363043000,-500.0,0.00014999,2]
[426415387,1782363043000,-500.0,0.00014999,2]
[426415375,1782363043000,-500.0,0.00014999,2]
[426415383,1782363043000,-500.0,0.00014999,2]
[426415385,1782363043000,-500.0,0.00014999,2]
[426415381,1782363043000,-500.0,0.00014999,2]
[426415369,1782363043000,-500.0,0.00014999,2]
[426415354,1782363043000,-541.66,0.00014999,2]
[426415371,1782363043000,-500.0,0.00014999,2]
[426415379,1782363043000,-500.0,0.00014999,2]
[426415367,1782363043000,-537.36949546,0.00014999,2]
[426415404,1782363043000,-860.74,0.00014999,2]
[426415389,1782363043000,-500.0,0.00014999,2]
[426415391,1782363043000,-500.0,0.00014999,2]
[426415396,1782363043000,-860.74,0.00014999,2]
[426415393,1782363043000,-500.0,0.00014999,2]
[426415394,1782363043000,-644.91000559,0.00014999,2]
[426415399,1782363043000,-860.74,0.00014999,2]
[426415401,1782363043000,-860.74,0.00014999,2]
[426415397,1782363043000,-860.74,0.00014999,2]
[426415402,1782363043000,-860.74,0.00014999,2]
[426415409,1782363043000,-860.74,0.00014999,2]
[426415405,1782363043000,-860.74,0.00014999,2]
[426415351,1782363043000,-541.66,0.00014999,2]
[426415390,1782363043000,-500.0,0.00014999,2]
[426415352,1782363043000,-541.66,0.00014999,2]
[426415309,1782363043000,-500.0,0.00014999,2]
[426415348,1782363043000,-541.66,0.00014999,2]
[426415407,1782363043000,-860.74,0.00014999,2]
[426415302,1782363043000,-1648.77504909,0.000149,2]
[426415307,1782363043000,-471.46339761,0.0001499,2]
[426415317,1782363043000,-500.0,0.00014999,2]
[426415311,1782363043000,-500.0,0.00014999,2]
[426415313,1782363043000,-217.91,0.00014999,2]
[426415304,1782363043000,-471.46339761,0.0001499,2]
[426415315,1782363043000,-151.0,0.00014999,2]
[426415319,1782363043000,-541.66,0.00014999,2]
[426415323,1782363043000,-541.66,0.00014999,2]
[426415326,1782363043000,-541.66,0.00014999,2]
[426415321,1782363043000,-541.66,0.00014999,2]
[426415362,1782363043000,-541.82,0.00014999,2]
[426415328,1782363043000,-541.66,0.00014999,2]
[426415330,1782363043000,-541.66,0.00014999,2]
[426415343,1782363043000,-541.66,0.00014999,2]
[426415338,1782363043000,-541.66,0.00014999,2]
[426415341,1782363043000,-541.66,0.00014999,2]
[426415334,1782363043000,-541.66,0.00014999,2]
[426415336,1782363043000,-541.66,0.00014999,2]
[426415345,1782363043000,-541.66,0.00014999,2]
[426415356,1782363043000,-541.66,0.00014999,2]
[426415358,1782363043000,-541.66,0.00014999,2]
[426415360,1782363043000,-541.66,0.00014999,2]
[426415347,1782363043000,-541.66,0.00014999,2]
[426415364,1782363043000,-500.0,0.00014999,2]
[426415332,1782363043000,-541.66,0.00014999,2]
[426415426,1782363043000,-860.86266759,0.00014999,2]
[426415442,1782363043000,-500.0,0.00014999,2]
[426415419,1782363043000,-860.74,0.00014999,2]
[426415469,1782363043000,-500.0,0.00014999,2]
[426415480,1782363043000,-500.0,0.00014999,2]
[426415482,1782363043000,-500.0,0.00014999,2]
[426415484,1782363043000,-500.0,0.00014999,2]
[426415486,1782363043000,-500.0,0.00014999,2]
[426415488,1782363043000,-500.0,0.00014999,2]
[426415478,1782363043000,-500.0,0.00014999,2]
[426415470,1782363043000,-500.0,0.00014999,2]
[426415474,1782363043000,-500.0,0.00014999,2]
[426415472,1782363043000,-500.0,0.00014999,2]
[426415424,1782363043000,-860.74,0.00014999,2]
[426415476,1782363043000,-500.0,0.00014999,2]
[426415496,1782363043000,-500.0,0.00014999,2]
[426415492,1782363043000,-500.0,0.00014999,2]
[426415494,1782363043000,-500.0,0.00014999,2]
[426415498,1782363043000,-500.0,0.00014999,2]
[426415500,1782363043000,-500.0,0.00014999,2]
[426415504,1782363043000,-500.0,0.00014999,2]
[426415508,1782363043000,-500.0,0.00014999,2]
[426415510,1782363043000,-500.0,0.00014999,2]
[426415502,1782363043000,-500.0,0.00014999,2]
[426415512,1782363043000,-500.0,0.00014999,2]
[426415506,1782363043000,-500.0,0.00014999,2]
[426415514,1782363043000,-500.0,0.00014999,2]
[426415516,1782363043000,-500.0,0.00014999,2]
[426415465,1782363043000,-500.0,0.00014999,2]
[426415463,1782363043000,-500.0,0.00014999,2]
[426415490,1782363043000,-500.0,0.00014999,2]
[426415467,1782363043000,-500.0,0.00014999,2]
[426415464,1782363043000,-500.0,0.00014999,2]
[426415412,1782363043000,-860.74,0.00014999,2]
[426415413,1782363043000,-860.74,0.00014999,2]
[426415428,1782363043000,-500.0,0.00014999,2]
[426415422,1782363043000,-860.74,0.00014999,2]
[426415410,1782363043000,-860.74,0.00014999,2]
[426415415,1782363043000,-860.74,0.00014999,2]
[426415420,1782363043000,-860.74,0.00014999,2]
[426415429,1782363043000,-500.0,0.00014999,2]
[426415435,1782363043000,-500.0,0.00014999,2]
[426415437,1782363043000,-500.0,0.00014999,2]
[426415431,1782363043000,-500.0,0.00014999,2]
[426415433,1782363043000,-500.0,0.00014999,2]
[426415417,1782363043000,-860.74,0.00014999,2]
[426415445,1782363043000,-500.0,0.00014999,2]
[426415447,1782363043000,-500.0,0.00014999,2]
[426415459,1782363043000,-500.0,0.00014999,2]
[426415451,1782363043000,-500.0,0.00014999,2]
[426415461,1782363043000,-500.0,0.00014999,2]
[426415457,1782363043000,-500.0,0.00014999,2]
[426415453,1782363043000,-500.0,0.00014999,2]
[426415456,1782363043000,-500.0,0.00014999,2]
[426415440,1782363043000,-500.0,0.00014999,2]
[426415449,1782363043000,-500.0,0.00014999,2]
[426415444,1782363043000,-500.0,0.00014999,2]
[426415439,1782363043000,-500.0,0.00014999,2]
[426415454,1782363043000,-500.0,0.00014999,2]
[426415556,1782363044000,-500.0,0.00014999,2]
[426415547,1782363044000,-500.0,0.00014999,2]
[426415554,1782363044000,-500.0,0.00014999,2]
[426415552,1782363044000,-500.0,0.00014999,2]
[426415562,1782363044000,-500.0,0.00014999,2]
[426415565,1782363044000,-500.0,0.00014999,2]
[426415578,1782363044000,-500.0,0.00014999,2]
[426415566,1782363044000,-500.0,0.00014999,2]
[426415569,1782363044000,-500.0,0.00014999,2]
[426415549,1782363044000,-500.0,0.00014999,2]
[426415560,1782363044000,-500.0,0.00014999,2]
[426415545,1782363044000,-500.0,0.00014999,2]
[426415583,1782363044000,-500.0,0.00014999,2]
[426415540,1782363044000,-500.0,0.00014999,2]
[426415532,1782363044000,-500.0,0.00014999,2]
[426415534,1782363044000,-500.0,0.00014999,2]
[426415538,1782363044000,-500.0,0.00014999,2]
[426415530,1782363044000,-500.0,0.00014999,2]
[426415536,1782363044000,-500.0,0.00014999,2]
[426415524,1782363044000,-500.0,0.00014999,2]
[426415526,1782363044000,-500.0,0.00014999,2]
[426415520,1782363044000,-500.0,0.00014999,2]
[426415522,1782363044000,-500.0,0.00014999,2]
[426415528,1782363044000,-500.0,0.00014999,2]
[426415518,1782363044000,-500.0,0.00014999,2]
[426415543,1782363044000,-500.0,0.00014999,2]
[426415571,1782363044000,-500.0,0.00014999,2]
[426415558,1782363044000,-500.0,0.00014999,2]
[426415575,1782363044000,-500.0,0.00014999,2]
[426415626,1782363044000,-307.35,0.00015,2]
[426415621,1782363044000,-7237.0,0.00015,5]
[426415624,1782363044000,-70501.5973504,0.00015,7]
[426415619,1782363044000,-500.0,0.00014999,2]
[426415628,1782363044000,-151.75346863,0.00015,7]
[426415617,1782363044000,-500.0,0.00014999,2]
[426415616,1782363044000,-500.0,0.00014999,2]
[426415614,1782363044000,-500.0,0.00014999,2]
[426415612,1782363044000,-500.0,0.00014999,2]
[426415610,1782363044000,-500.0,0.00014999,2]
[426415595,1782363044000,-500.0,0.00014999,2]
[426415593,1782363044000,-500.0,0.00014999,2]
[426415581,1782363044000,-500.0,0.00014999,2]
[426415591,1782363044000,-500.0,0.00014999,2]
[426415608,1782363044000,-500.0,0.00014999,2]
[426415606,1782363044000,-500.0,0.00014999,2]
[426415604,1782363044000,-500.0,0.00014999,2]
[426415602,1782363044000,-500.0,0.00014999,2]
[426415600,1782363044000,-500.0,0.00014999,2]
[426415598,1782363044000,-500.0,0.00014999,2]
[426415630,1782363044000,-690836.38226302,0.00015,2]
[426415589,1782363044000,-500.0,0.00014999,2]
[426415587,1782363044000,-328.46404693,0.00014999,2]
[426415573,1782363044000,-500.0,0.00014999,2]
[426415576,1782363044000,-500.0,0.00014999,2]
[426415585,1782363044000,-500.0,0.00014999,2]
[426415597,1782363044000,-500.0,0.00014999,2]
[426415715,1782363045000,-903.73261565,0.00013698,2]
[426415742,1782363045000,-900.84906653,0.00013698,2]
[426415741,1782363045000,-96.26738435,0.00013698,2]
[426415944,1782363046000,-562329.39695116,0.00015,2]
[426415916,1782363046000,-755.69093347,0.00013698,2]
[426415907,1782363046000,-99.15093347,0.00013698,2]
[426415909,1782363046000,-244.30906653,0.00013698,2]
[426415919,1782363046000,-1000.0,0.00013698,2]
[426415920,1782363046000,-6.3984535,0.00013698,2]
[426415918,1782363046000,-1000.0,0.00013698,2]
[426415934,1782363046000,-1000.0,0.00013698,2]
[426415932,1782363046000,-1000.0,0.00013698,2]
[426415936,1782363046000,-1000.0,0.00013698,2]
[426415938,1782363046000,-1000.0,0.00013698,2]
[426415940,1782363046000,-322.898024,0.00014699,2]
[426415942,1782363046000,-151.0,0.00014999,2]
[426415930,1782363046000,-993.6015465,0.00013698,2]
[426416226,1782363122000,1980.31,0.00030493,30]
[426416227,1782363126000,17054.44165963,0.00031506,30]
[426416230,1782363445000,5228.0,0.00031,120]
[426416233,1782363466000,163.81028487,0.00031,120]
[426416234,1782363714000,46581.0,0.000315,30]
[426416237,1782363900000,-149.78,0.00010628,2]
[426416236,1782363900000,-297.0,0.00010584,2]
[426416235,1782363900000,-313.22,0.00010569,2]
[426416238,1782363955000,153.357341,0.0003113,45]
[426416239,1782363959000,1815.28,0.00030315,30]
[426416297,1782364161000,-163.44,0.00010628,2]
[426416299,1782364161000,-216.45114417,0.000107,2]
[426416298,1782364161000,-313.22,0.00010687,2]
[426416300,1782364161000,-313.22,0.00010746,2]
[426416309,1782364162000,-467.50002289,0.00010997,2]
[426416305,1782364162000,-800.89099716,0.00010995,2]
[426416308,1782364162000,-500.0,0.00010997,2]
[426416307,1782364162000,-492.39783578,0.00010997,2]
[426416306,1782364162000,-150.0,0.00010996,2]
[426416303,1782364162000,-313.22,0.00010923,2]
[426416304,1782364162000,-313.22,0.00010981,2]
[426416302,1782364162000,-313.22,0.00010864,2]
[426416301,1782364162000,-313.22,0.00010805,2]
[426416310,1782364204000,3000.0,0.00031507,30]
[426416311,1782364211000,3000.0,0.00031507,30]
[426416359,1782364232000,-166.66,0.00012114,2]
[426416357,1782364232000,-255.0,0.00012041,2]
[426416354,1782364232000,-313.22,0.00011512,2]
[426416352,1782364232000,-313.22,0.00011394,2]
[426416355,1782364232000,-313.22,0.0001157,2]
[426416356,1782364232000,-166.66,0.00011864,2]
[426416351,1782364232000,-313.22,0.00011335,2]
[426416353,1782364232000,-313.22,0.00011453,2]
[426416360,1782364232000,-216.77,0.00012361,2]
[426416367,1782364232000,-166.66,0.00013113,2]
[426416364,1782364232000,-166.66,0.00012614,2]
[426416365,1782364232000,-165.72,0.00012844,2]
[426416371,1782364232000,-150.0,0.00013488,2]
[426416361,1782364232000,-166.66,0.00012364,2]
[426416362,1782364232000,-150.0,0.00012437,2]
[426416350,1782364232000,-313.22,0.00011276,2]
[426416363,1782364232000,-175.45,0.00012471,2]
[426416370,1782364232000,-150.0,0.00013488,2]
[426416366,1782364232000,-166.66,0.00012864,2]
[426416369,1782364232000,-150.0,0.00013488,2]
[426416349,1782364232000,-313.22,0.00011217,2]
[426416344,1782364232000,-151.0,0.00011146,2]
[426416358,1782364232000,-203.39689881,0.000121,2]
[426416329,1782364232000,-2051.34856343,0.00011,2]
[426416334,1782364232000,-151.0,0.00011125,2]
[426416332,1782364232000,-313.22,0.00011099,2]
[426416330,1782364232000,-2537.15652979,0.00011,2]
[426416331,1782364232000,-313.22,0.0001104,2]
[426416333,1782364232000,-151.0,0.00011125,2]
[426416335,1782364232000,-153.0,0.00011125,2]
[426416337,1782364232000,-151.0,0.00011125,2]
[426416336,1782364232000,-151.0,0.00011125,2]
[426416338,1782364232000,-150.0,0.00011125,2]
[426416339,1782364232000,-151.0,0.00011125,2]
[426416340,1782364232000,-151.0,0.00011126,2]
[426416342,1782364232000,-151.0,0.00011126,2]
[426416341,1782364232000,-150.0,0.00011126,2]
[426416343,1782364232000,-160.0,0.00011143,2]
[426416368,1782364232000,-433.0,0.00013184,2]
[426416345,1782364232000,-151.0,0.00011146,2]
[426416346,1782364232000,-151.0,0.00011146,2]
[426416348,1782364232000,-313.22,0.00011158,2]
[426416347,1782364232000,-151.0,0.00011146,2]
[426416373,1782364232000,-150.0,0.00013488,2]
[426416380,1782364232000,-320.0,0.00013489,2]
[426416374,1782364232000,-150.0,0.00013488,2]
[426416401,1782364232000,-200.0,0.000143,5]
[426416398,1782364232000,-200.0,0.00013699,2]
[426416403,1782364232000,-600.0,0.000145,5]
[426416399,1782364232000,-250.0,0.00014,2]
[426416404,1782364232000,-244.3971161,0.00014536,2]
[426416402,1782364232000,-400.0,0.000144,5]
[426416406,1782364232000,-310.71110687,0.00014539,2]
[426416416,1782364232000,-406.11988672,0.000148,2]
[426416405,1782364232000,-209.37325392,0.00014536,2]
[426416410,1782364232000,-200.0,0.00014731,2]
[426416408,1782364232000,-1000.0,0.000147,5]
[426416409,1782364232000,-2000.0,0.000147,2]
[426416407,1782364232000,-800.0,0.000146,5]
[426416411,1782364232000,-176.7329,0.00014756,2]
[426416412,1782364232000,-2500.0,0.00014756,2]
[426416414,1782364232000,-1918.06498402,0.00014776,2]
[426416413,1782364232000,-1918.06498403,0.00014761,2]
[426416415,1782364232000,-1918.06498402,0.00014792,2]
[426416376,1782364232000,-151.0,0.00013489,2]
[426416400,1782364232000,-175.42733258,0.00014025,2]
[426416397,1782364232000,-587.65139559,0.00013698,2]
[426416417,1782364232000,-303.48781724,0.000148,2]
[426416394,1782364232000,-500.0,0.00013698,2]
[426416396,1782364232000,-500.0,0.00013698,2]
[426416377,1782364232000,-318.0,0.00013489,2]
[426416375,1782364232000,-150.0,0.00013488,2]
[426416379,1782364232000,-309.0,0.00013489,2]
[426416381,1782364232000,-311.0,0.00013489,2]
[426416378,1782364232000,-151.0,0.00013489,2]
[426416383,1782364232000,-319.0,0.00013489,2]
[426416385,1782364232000,-821.99,0.00013608,2]
[426416372,1782364232000,-150.0,0.00013488,2]
[426416382,1782364232000,-152.0,0.00013489,2]
[426416384,1782364232000,-317.0,0.00013489,2]
[426416386,1782364232000,-1370.93,0.00013608,2]
[426416387,1782364232000,-33046.24,0.00013608,2]
[426416390,1782364232000,-500.0,0.00013698,2]
[426416389,1782364232000,-500.0,0.00013698,2]
[426416392,1782364232000,-500.0,0.00013698,2]
[426416391,1782364232000,-500.0,0.00013698,2]
[426416388,1782364232000,-309.0,0.00013619,2]
[426416395,1782364232000,-500.0,0.00013698,2]
[426416393,1782364232000,-500.0,0.00013698,2]
[426416453,1782364233000,-200.0,0.00014879,2]
[426416464,1782364233000,-500.0,0.00014899,2]
[426416454,1782364233000,-1918.06498402,0.00014885,2]
[426416448,1782364233000,-2875.04607429,0.00014867,2]
[426416449,1782364233000,-1918.06498402,0.00014869,2]
[426416450,1782364233000,-2132.8126481,0.00014878,2]
[426416452,1782364233000,-4522.16341827,0.00014878,2]
[426416447,1782364233000,-5291.46620222,0.00014867,2]
[426416455,1782364233000,-500.0,0.00014885,2]
[426416451,1782364233000,-1511.53621014,0.00014878,2]
[426416457,1782364233000,-246.8591125,0.0001489,2]
[426416465,1782364233000,-500.0,0.00014899,2]
[426416460,1782364233000,-500.0,0.00014899,2]
[426416459,1782364233000,-500.0,0.00014899,2]
[426416463,1782364233000,-500.0,0.00014899,2]
[426416458,1782364233000,-500.0,0.00014899,2]
[426416462,1782364233000,-500.0,0.00014899,2]
[426416461,1782364233000,-500.0,0.00014899,2]
[426416467,1782364233000,-500.0,0.00014899,2]
[426416445,1782364233000,-8166.51227651,0.00014856,2]
[426416466,1782364233000,-500.0,0.00014899,2]
[426416470,1782364233000,-384.39499546,0.00014899,2]
[426416469,1782364233000,-115.60500454,0.00014899,2]
[426416468,1782364233000,-500.0,0.00014899,2]
[426416456,1782364233000,-8166.51227651,0.00014889,2]
[426416446,1782364233000,-315.0,0.00014861,2]
[426416436,1782364233000,-200.0,0.000148,5]
[426416444,1782364233000,-1918.06498402,0.00014854,2]
[426416471,1782364233000,-500.0,0.00014899,2]
[426416418,1782364233000,-10000.0,0.000148,2]
[426416427,1782364233000,-2068.0,0.000148,2]
[426416419,1782364233000,-2000.0,0.000148,2]
[426416428,1782364233000,-2000.0,0.000148,2]
[426416420,1782364233000,-2000.0,0.000148,2]
[426416421,1782364233000,-2000.0,0.000148,2]
[426416424,1782364233000,-2000.0,0.000148,2]
[426416422,1782364233000,-2000.0,0.000148,2]
[426416423,1782364233000,-2000.0,0.000148,2]
[426416425,1782364233000,-2000.0,0.000148,2]
[426416426,1782364233000,-2000.0,0.000148,2]
[426416430,1782364233000,-210.31161269,0.000148,2]
[426416441,1782364233000,-1918.06498402,0.00014838,2]
[426416440,1782364233000,-208.147,0.00014833,2]
[426416429,1782364233000,-2000.0,0.000148,2]
[426416435,1782364233000,-2000.0,0.000148,2]
[426416438,1782364233000,-2982.544,0.00014817,2]
[426416439,1782364233000,-1918.06498402,0.00014823,2]
[426416431,1782364233000,-2000.0,0.000148,2]
[426416432,1782364233000,-2000.0,0.000148,2]
[426416433,1782364233000,-302.93658661,0.000148,2]
[426416437,1782364233000,-1918.06498402,0.00014807,2]
[426416434,1782364233000,-2000.0,0.000148,2]
[426416442,1782364233000,-8166.51227651,0.00014844,2]
[426416443,1782364233000,-317.0,0.0001485,2]
[426416473,1782364233000,-362.86688588,0.00014899,2]
[426416523,1782364233000,-1420.57932293,0.000149,2]
[426416476,1782364233000,-340.80665927,0.00014899,2]
[426416502,1782364233000,-500.0,0.00014899,2]
[426416511,1782364233000,-629.42950447,0.00014899,2]
[426416512,1782364233000,-269.79843466,0.00014899,2]
[426416513,1782364233000,-230.20156534,0.00014899,2]
[426416505,1782364233000,-500.0,0.00014899,2]
[426416506,1782364233000,-500.0,0.00014899,2]
[426416504,1782364233000,-500.0,0.00014899,2]
[426416509,1782364233000,-500.0,0.00014899,2]
[426416507,1782364233000,-500.0,0.00014899,2]
[426416508,1782364233000,-500.0,0.00014899,2]
[426416514,1782364233000,-500.0,0.00014899,2]